[Event "Mukachevo Rating January 2019"]
[Site "Mukachevo"]
[Date "2019.01.10"]
[Round "3"]
[White "Shkuran, Danylo"]
[Black "Martynyuk, Elizaveta"]
[Result "1-0"]
[ECO "B47"]
[WhiteElo "2359"]
[BlackElo "2120"]
[Annotator "ChessBase"]
[PlyCount "191"]
[EventDate "2019.01.09"]
[EventType "tourn"]
[EventCountry "UKR"]
[SourceTitle "playchess.com"]
[Source "ChessBase"]
[SourceQuality "1"]
[TimeControl "5400+30"]

1. e4 {[%emt 0:00:00]} c5 {[%emt 0:00:00]} 2. Nf3 {[%emt 0:00:00]} e6 {[%emt 0:00:00]} 3. d4 {[%emt 0:00:00]} cxd4 {[%emt 0:00:00]} 4. Nxd4 {[%emt 0:00:00]} Nc6 {[%emt 0:00:00]} 5. Nc3 {[%emt 0:00:10]} Qc7 {[%emt 0:00:00]} 6. g3 {[%emt 0:00:07]} a6 {[%emt 0:00:00]} 7. Bg2 {[%emt 0:00:05]} Nf6 {[%emt 0:00:04]} 8. O-O {[%emt 0:00:08]} Bc5 {[%emt 0:00:06]} 9. Nb3 {[%emt 0:00:44]} Ba7 {[%emt 0:00:13]} 10. Kh1 {[%emt 0:00:35]} d6 {[%emt 0:00:48]} 11. f4 {[%emt 0:09:19]} h5 {[%emt 0:03:56]} 12. h3 {[%emt 0:01:23]} Ng4 {[%emt 0:00:31]} 13. Qe2 {[%emt 0:00:42]} b5 {[%emt 0:00:49]} 14. a3 {[%emt 0:06:40]} Bb7 {[%emt 0:01:46]} 15. Bf3 {[%emt 0:02:18]} Qb6 {[%emt 0:16:04]} 16. Nd1 {[%emt 0:15:49]} Nd4 {[%emt 0:06:05]} 17. Nxd4 {[%emt 0:00:27]} Qxd4 {[%emt 0:00:09]} 18. Kg2 {[%emt 0:10:26]} Nf6 {[%emt 0:03:07]} 19. Nc3 {[%emt 0:00:34]} Rc8 {[%emt 0:00:44]} 20. Rd1 {[%emt 0:03:53]} Qb6 {[%emt 0:07:26]} 21. Rd3 {[%emt 0:04:45]} Qc7 {[%emt 0:03:01]} 22. Be3 Bxe3 {[%emt 0:01:57]} 23. Qxe3 {[%emt 0:01:44]} O-O {[%emt 0:01:30]} 24. Rad1 {[%emt 0:05:23]} d5 {[%emt 0:03:29]} 25. exd5 {[%emt 0:03:53]} Nxd5 {[%emt 0:04:37]} 26. Nxd5 {[%emt 0:01:06]} Bxd5 {[%emt 0:01:54]} 27. Bxd5 {[%emt 0:01:33]} exd5 {[%emt 0:00:04]} 28. c3 {[%emt 0:04:06]} h4 {[%emt 0:00:15]} 29. Rxd5 {[%emt 0:00:36]} hxg3 {[%emt 0:01:15]} 30. Re5 {[%emt 0:09:19]} Qc4 {[%emt 0:02:11]} 31. Rd4 {[%emt 0:01:44]} Qb3 {[%emt 0:01:57]} 32. Qd2 {[%emt 0:04:45]} Rfe8 {[%emt 0:08:27]} 33. Rxe8+ {[%emt 0:00:55]} Rxe8 {[%emt 0:00:04]} 34. Kxg3 {[%emt 0:00:12]} Re6 {[%emt 0:00:29]} 35. f5 {[%emt 0:06:18]} Rf6 {[%emt 0:00:57]} 36. Rf4 {[%emt 0:00:06]} Kh7 {[%emt 0:01:29]} 37. Rh4+ {[%emt 0:01:27]} Rh6 {[%emt 0:00:07]} 38. Rg4 {[%emt 0:00:05]} Rh5 {[%emt 0:02:33]} 39. Qd4 {[%emt 0:03:32]} f6 {[%emt 0:00:09]} 40. Qd7 {[%emt 0:00:41]} Qg8 {[%emt 0:00:44]} 41. h4 {[%emt 0:01:06]} Qb8+ {[%emt 0:01:58]} 42. Kf3 {[%emt 0:01:31]} Qa8+ {[%emt 0:00:49]} 43. Ke3 {[%emt 0:00:09]} Qf8 {[%emt 0:00:37]} 44. Kd3 {[%emt 0:00:48]} Kg8 {[%emt 0:01:20]} 45. Rxg7+ {[%emt 0:00:35]} Qxg7 {[%emt 0:00:26]} 46. Qe8+ {[%emt 0:00:03]} Qf8 {[%emt 0:00:25]} 47. Qxh5 {[%emt 0:00:21]} Qd6+ {[%emt 0:00:06]} 48. Kc2 {[%emt 0:00:03]} Qe5 {[%emt 0:01:17]} 49. Qg4+ {[%emt 0:00:08]} Kf8 {[%emt 0:00:45]} 50. Kb1 {[%emt 0:02:17]} a5 {[%emt 0:00:21]} 51. h5 {[%emt 0:01:23]} Qd5 {[%emt 0:01:21]} 52. Kc2 {[%emt 0:01:31]} Qe5 {[%emt 0:00:40]} 53. Kb1 {[%emt 0:00:33]} Qd5 {[%emt 0:00:10]} 54. h6 {[%emt 0:00:13]} Qh1+ {[%emt 0:00:06]} 55. Ka2 {[%emt 0:00:04]} Qxh6 {[%emt 0:00:13]} 56. Qe4 {[%emt 0:01:10]} Qd2 {[%emt 0:01:40]} 57. Qe6 {[%emt 0:00:30]} Qd8 {[%emt 0:00:17]} 58. a4 {[%emt 0:00:32]} bxa4 {[%emt 0:00:25]} 59. Ka3 {[%emt 0:00:26]} Kg7 {[%emt 0:00:43]} 60. Kxa4 {[%emt 0:00:09]} Qd1+ {[%emt 0:00:21]} 61. Ka3 {[%emt 0:00:51]} Qa1+ {[%emt 0:00:28]} 62. Kb3 {[%emt 0:00:35]} Qd1+ {[%emt 0:00:43]} 63. Kc4 {[%emt 0:00:04]} Qf1+ {[%emt 0:00:28]} 64. Kc5 {[%emt 0:00:52]} Qf2+ {[%emt 0:00:29]} 65. Kc6 {[%emt 0:00:20]} Qg2+ {[%emt 0:01:01]} 66. Qd5 {[%emt 0:00:36]} Qxb2 {[%emt 0:00:25]} 67. Qxa5 {[%emt 0:00:03]} Kh6 {[%emt 0:00:36]} 68. c4 {[%emt 0:00:42]} Kg5 {[%emt 0:00:09]} 69. Qd5 {[%emt 0:00:44]} Qa2 {[%emt 0:00:48]} 70. Kb7 {[%emt 0:00:39]} Qb3+ {[%emt 0:01:08]} 71. Kc7 {[%emt 0:00:27]} Qa2 {[%emt 0:00:30]} 72. Kd7 {[%emt 0:00:31]} Qa7+ {[%emt 0:01:16]} 73. Ke8 {[%emt 0:00:19]} Qb8+ {[%emt 0:00:27]} 74. Ke7 {[%emt 0:00:37]} Qc7+ {[%emt 0:01:17]} 75. Ke6 {[%emt 0:00:05]} Qc8+ {[%emt 0:00:07]} 76. Kd6 {[%emt 0:00:04]} Qb8+ {[%emt 0:00:16]} 77. Kc6 {[%emt 0:00:11]} Qa8+ {[%emt 0:00:25]} 78. Kb6 {[%emt 0:00:38]} Qb8+ {[%emt 0:00:15]} 79. Qb7 {[%emt 0:00:59]} Qd6+ {[%emt 0:00:41]} 80. Kb5 {[%emt 0:00:11]} Qd3 {[%emt 0:00:46]} 81. Qg2+ {[%emt 0:00:54]} Kf4 {[%emt 0:00:10]} 82. Qd5 {[%emt 0:00:25]} Qb3+ {[%emt 0:00:32]} 83. Kc6 {[%emt 0:00:09]} Qa2 {[%emt 0:00:51]} 84. Qd6+ {[%emt 0:01:08]} Kxf5 {[%emt 0:00:31]} 85. c5 {[%emt 0:00:02]} Qa6+ {[%emt 0:01:01]} 86. Kc7 {[%emt 0:00:37]} Qa7+ {[%emt 0:00:16]} 87. Kd8 {[%emt 0:00:11]} Qa8+ {[%emt 0:00:22]} 88. Kd7 {[%emt 0:00:45]} Qb7+ {[%emt 0:00:04]} 89. Qc7 {[%emt 0:00:27]} Qd5+ {[%emt 0:00:07]} 90. Ke7 {[%emt 0:00:24]} Qe4+ {[%emt 0:00:34]} 91. Kf7 {[%emt 0:01:20]} Qd5+ {[%emt 0:00:48]} 92. Ke7 {[%emt 0:00:34]} Ke4 {[%emt 0:01:48]} 93. Qd6 {[%emt 0:00:32]} Qa8 {[%emt 0:02:35]} 94. c6 {[%emt 0:00:19]} f5 {[%emt 0:01:26]} 95. c7 {[%emt 0:00:10]} Kf3 {[%emt 0:00:12]} 96. Qd3+ {[%emt 0:00:49]} 1-0

[Event "Mukachevo Rating January 2019"]
[Site "Mukachevo"]
[Date "2019.01.12"]
[Round "6"]
[White "Baidetskyi, Valentin"]
[Black "Tiba, Vladyslav"]
[Result "1-0"]
[ECO "B42"]
[WhiteElo "2387"]
[BlackElo "2405"]
[Annotator "NA"]
[PlyCount "87"]
[EventDate "2019.01.09"]
[EventType "tourn"]
[EventCountry "UKR"]
[SourceTitle "playchess.com"]
[Source "ChessBase"]
[SourceQuality "1"]
[TimeControl "5400+30"]

1. e4 {[%emt 0:00:00]} c5 {[%emt 0:00:00]} 2. Nf3 {[%emt 0:00:00]} e6 {[%emt 0:00:00]} 3. d4 {[%emt 0:00:00]} cxd4 {[%emt 0:00:00]} 4. Nxd4 {[%emt 0:00:00]} a6 {[%emt 0:00:00]} 5. Bd3 {[%emt 0:00:00]} Nf6 {[%emt 0:00:02]} 6. O-O {[%emt 0:00:00]} Qc7 {[%emt 0:00:07]} 7. Qe2 {[%emt 0:00:17]} d6 {[%emt 0:00:57]} 8. c4 {[%emt 0:00:20]} g6 {[%emt 0:06:43]} 9. Nc3 {[%emt 0:00:27]} Bg7 {[%emt 0:00:17]} 10. Rd1 {[%emt 0:01:03]} O-O {[%emt 0:00:29]} 11. h3 {[%emt 0:00:30]} Nc6 {[%emt 0:00:25]} 12. Nf3 {[%emt 0:01:18]} Nd7 {[%emt 0:00:56]} 13. Bf4 {[%emt 0:03:40]} Nde5 {[%emt 0:01:53]} 14. Rac1 {[%emt 0:00:52]} Bd7 {[%emt 0:03:59]} 15. Bb1 {[%emt 0:12:14]} Rac8 {[%emt 0:12:07]} 16. b3 {[%emt 0:04:36]} h6 {[%emt 0:25:18]} 17. Nh2 {[%emt 0:03:30]} Rcd8 {[%emt 0:11:40]} 18. Be3 {[%emt 0:06:23]} g5 {[%emt 0:07:27]} 19. Na4 {[%emt 0:06:30]} Rc8 {[%emt 0:11:25]} 20. Bb6 {[%emt 0:02:32]} Qb8 {[%emt 0:00:06]} 21. Qd2 {[%emt 0:00:17]} Ne7 {[%emt 0:00:54]} 22. Qb4 {[%emt 0:09:52]} Bxa4 {[%emt 0:00:37]} 23. Qxa4 {[%emt 0:00:10]} Rc6 {[%emt 0:00:52]} 24. Qb4 {[%emt 0:01:02]} N7g6 {[%emt 0:00:36]} 25. Be3 {[%emt 0:06:11]} Qc7 {[%emt 0:01:24]} 26. g3 {[%emt 0:04:46]} Qe7 {[%emt 0:05:06]} 27. Qd2 {[%emt 0:11:30]} Nd7 {[%emt 0:02:31]} 28. Kh1 {[%emt 0:00:55]} e5 {[%emt 0:02:59]} 29. Qe2 {[%emt 0:01:24]} Nc5 {[%emt 0:02:16]} 30. Qh5 {[%emt 0:06:59]} Ne6 {[%emt 0:00:52]} 31. Ng4 {[%emt 0:00:07]} Rfc8 {[%emt 0:01:45]} 32. Nxh6+ {[%emt 0:00:50]} Bxh6 {[%emt 0:00:05]} 33. Qxh6 {[%emt 0:00:04]} Qf6 {[%emt 0:00:59]} 34. Bd3 {[%emt 0:05:11]} b5 {[%emt 0:01:29]} 35. Be2 {[%emt 0:03:50]} Nd4 {[%emt 0:00:41]} 36. Bg4 {[%emt 0:00:18]} R8c7 {[%emt 0:00:31]} 37. Bxg5 {[%emt 0:01:28]} Qg7 {[%emt 0:00:29]} 38. Qxg7+ {[%emt 0:00:28]} Kxg7 {[%emt 0:00:02]} 39. cxb5 {[%emt 0:01:55]} axb5 {[%emt 0:00:26]} 40. Rxc6 {[%emt 0:00:12]} Rxc6 {[%emt 0:00:05]} 41. Be3 {[%emt 0:00:10]} Nc2 {[%emt 0:00:25]} 42. Rc1 {[%emt 0:00:23]} Ne7 {[%emt 0:00:17]} 43. Bd7 {[%emt 0:00:17]} Rc7 {[%emt 0:00:54]} 44. Bxb5 {[%emt 0:00:08]} 1-0

[Event "Mukachevo Rating January 2019"]
[Site "Mukachevo"]
[Date "2019.01.12"]
[Round "6"]
[White "Shkuran, Danylo"]
[Black "Larkin, Vladyslav"]
[Result "1-0"]
[ECO "B07"]
[WhiteElo "2359"]
[BlackElo "2311"]
[Annotator "NA"]
[PlyCount "121"]
[EventDate "2019.01.09"]
[EventType "tourn"]
[EventCountry "UKR"]
[SourceTitle "playchess.com"]
[Source "ChessBase"]
[SourceQuality "1"]
[TimeControl "5400+30"]

1. e4 {[%emt 0:00:00]} d6 {[%emt 0:00:00]} 2. d4 {[%emt 0:00:10]} Nf6 {[%emt 0:00:00]} 3. Nc3 {[%emt 0:00:04]} Nbd7 {[%emt 0:00:58]} 4. g3 {[%emt 0:02:30]} e5 {[%emt 0:00:49]} 5. Bg2 {[%emt 0:00:47]} g6 {[%emt 0:13:50]} 6. Nge2 {[%emt 0:02:51]} Bg7 {[%emt 0:00:09]} 7. O-O {[%emt 0:00:21]} O-O {[%emt 0:00:10]} 8. h3 {[%emt 0:00:45]} Re8 {[%emt 0:07:10]} 9. Re1 {[%emt 0:05:41]} c6 {[%emt 0:05:16]} 10. a4 {[%emt 0:06:20]} b6 {[%emt 0:09:41]} 11. Be3 {[%emt 0:04:01]} Bb7 {[%emt 0:02:38]} 12. g4 {[%emt 0:08:09]} d5 {[%emt 0:05:15]} 13. exd5 {[%emt 0:03:21]} cxd5 {[%emt 0:00:41]} 14. Nb5 {[%emt 0:07:34]} exd4 {[%emt 0:04:37]} 15. Bxd4 {[%emt 0:08:56]} Ne5 {[%emt 0:02:27]} 16. Nec3 {[%emt 0:04:16]} Ne4 {[%emt 0:06:34]} 17. f4 {[%emt 0:11:33]} Nc4 {[%emt 0:08:56]} 18. Bxg7 {[%emt 0:17:11]} Kxg7 {[%emt 0:00:07]} 19. Qd4+ {[%emt 0:00:13]} Qf6 {[%emt 0:00:20]} 20. Rxe4 {[%emt 0:12:53]} Rxe4 {[%emt 0:00:42]} 21. Qxf6+ {[%emt 0:00:04]} Kxf6 {[%emt 0:00:05]} 22. Bxe4 {[%emt 0:00:31]} dxe4 {[%emt 0:00:14]} 23. b3 {[%emt 0:02:06]} Nd2 {[%emt 0:00:59]} 24. Kf2 {[%emt 0:01:08]} Rc8 {[%emt 0:09:28]} 25. Rd1 {[%emt 0:00:14]} Nf3 {[%emt 0:01:50]} 26. Rd7 {[%emt 0:00:47]} Ba8 {[%emt 0:06:01]} 27. Rxa7 {[%emt 0:00:24]} e3+ {[%emt 0:01:49]} 28. Kxe3 {[%emt 0:00:11]} Ne1 {[%emt 0:01:28]} 29. Kd2 {[%emt 0:00:55]} Ng2 {[%emt 0:00:26]} 30. Rxf7+ {[%emt 0:00:32]} Ke6 {[%emt 0:00:07]} 31. Rxh7 {[%emt 0:00:14]} Nxf4 {[%emt 0:00:08]} 32. Nc7+ {[%emt 0:00:28]} Ke5 {[%emt 0:00:51]} 33. Nxa8 {[%emt 0:00:43]} Rxa8 {[%emt 0:00:02]} 34. h4 {[%emt 0:00:33]} Rd8+ {[%emt 0:01:44]} 35. Kc1 {[%emt 0:00:09]} Kd4 {[%emt 0:00:22]} 36. Kb2 {[%emt 0:00:16]} Ke3 {[%emt 0:00:57]} 37. Rb7 {[%emt 0:01:01]} Kf3 {[%emt 0:01:36]} 38. Rxb6 {[%emt 0:00:26]} Kxg4 {[%emt 0:00:06]} 39. Rb4 {[%emt 0:00:12]} Kf3 {[%emt 0:00:05]} 40. a5 {[%emt 0:00:36]} Rd2 {[%emt 0:01:30]} 41. Kc1 {[%emt 0:00:09]} Rd8 {[%emt 0:00:35]} 42. a6 {[%emt 0:00:31]} Ra8 {[%emt 0:01:03]} 43. Ra4 {[%emt 0:00:27]} Ne6 {[%emt 0:00:04]} 44. b4 {[%emt 0:00:11]} Rc8 {[%emt 0:00:26]} 45. Kb2 {[%emt 0:00:53]} Nc7 {[%emt 0:01:20]} 46. b5 {[%emt 0:00:15]} Na8 {[%emt 0:00:07]} 47. Nd5 {[%emt 0:00:13]} Rb8 {[%emt 0:00:35]} 48. c4 {[%emt 0:00:13]} Ke4 {[%emt 0:00:05]} 49. Kc3 {[%emt 0:00:30]} Ke5 {[%emt 0:00:29]} 50. Ra1 {[%emt 0:00:06]} Kd6 {[%emt 0:00:18]} 51. Kd4 {[%emt 0:00:08]} Rh8 {[%emt 0:00:22]} 52. c5+ {[%emt 0:00:19]} Kd7 {[%emt 0:00:22]} 53. b6 {[%emt 0:01:35]} Rxh4+ {[%emt 0:00:20]} 54. Kc3 {[%emt 0:00:09]} Rh8 {[%emt 0:00:15]} 55. Kc4 {[%emt 0:00:59]} Kc6 {[%emt 0:02:05]} 56. Nb4+ {[%emt 0:00:32]} Kd7 {[%emt 0:00:07]} 57. Rd1+ {[%emt 0:00:46]} Kc8 {[%emt 0:00:24]} 58. Kb5 {[%emt 0:01:04]} g5 {[%emt 0:01:06]} 59. Nd5 {[%emt 0:00:40]} g4 {[%emt 0:01:06]} 60. Ne7+ {[%emt 0:00:21]} Kb8 {[%emt 0:00:09]} 61. a7+ {[%emt 0:00:05]} 1-0

[Event "Mukachevo Rating January 2019"]
[Site "Mukachevo"]
[Date "2019.01.12"]
[Round "6"]
[White "Oros, Robert"]
[Black "Kagramanianz, Vartan"]
[Result "1-0"]
[ECO "B25"]
[WhiteElo "2312"]
[BlackElo "2246"]
[Annotator "NA"]
[PlyCount "103"]
[EventDate "2019.01.09"]
[EventType "tourn"]
[EventCountry "UKR"]
[SourceTitle "playchess.com"]
[Source "ChessBase"]
[SourceQuality "1"]
[TimeControl "5400+30"]

1. e4 {[%emt 0:00:00]} c5 {[%emt 0:00:00]} 2. Nc3 {[%emt 0:00:04]} Nc6 {[%emt 0:00:15]} 3. g3 {[%emt 0:00:08]} g6 {[%emt 0:00:33]} 4. Bg2 {[%emt 0:00:09]} Bg7 {[%emt 0:00:04]} 5. d3 {[%emt 0:00:18]} d6 {[%emt 0:00:44]} 6. f4 {[%emt 0:00:32]} e6 {[%emt 0:02:47]} 7. Nf3 {[%emt 0:00:36]} Nge7 {[%emt 0:02:04]} 8. O-O {[%emt 0:01:31]} O-O {[%emt 0:01:51]} 9. Be3 {[%emt 0:00:10]} Nd4 {[%emt 0:03:32]} 10. e5 {[%emt 0:01:02]} Nef5 {[%emt 0:07:16]} 11. Bf2 {[%emt 0:00:18]} d5 {[%emt 0:06:50]} 12. Nd2 {[%emt 0:13:42]} f6 {[%emt 0:07:12]} 13. g4 {[%emt 0:21:35]} Ne7 {[%emt 0:00:34]} 14. exf6 {[%emt 0:00:28]} Bxf6 {[%emt 0:01:11]} 15. Na4 {[%emt 0:00:38]} b6 {[%emt 0:01:08]} 16. c3 {[%emt 0:01:57]} Ndc6 {[%emt 0:00:58]} 17. Nf3 {[%emt 0:04:25]} Bg7 {[%emt 0:21:38]} 18. Bg3 {[%emt 0:02:33]} Bd7 {[%emt 0:00:47]} 19. d4 {[%emt 0:07:47]} Qc8 {[%emt 0:02:42]} 20. h3 {[%emt 0:05:02]} Qa6 {[%emt 0:10:36]} 21. b3 {[%emt 0:00:55]} Rac8 {[%emt 0:00:20]} 22. Ne5 {[%emt 0:11:50]} Nxe5 {[%emt 0:01:22]} 23. dxe5 {[%emt 0:00:42]} Qa5 {[%emt 0:13:00]} 24. c4 {[%emt 0:06:57]} b5 {[%emt 0:06:56]} 25. Be1 {[%emt 0:00:27]} Qd8 {[%emt 0:00:45]} 26. Nc3 {[%emt 0:00:42]} b4 {[%emt 0:01:23]} 27. Ne2 {[%emt 0:04:45]} dxc4 {[%emt 0:00:20]} 28. bxc4 {[%emt 0:01:30]} Bc6 {[%emt 0:00:32]} 29. Bh4 {[%emt 0:01:21]} Bxg2 {[%emt 0:01:07]} 30. Kxg2 {[%emt 0:00:36]} Qxd1 {[%emt 0:01:32]} 31. Raxd1 {[%emt 0:00:08]} Nc6 {[%emt 0:00:11]} 32. Rd6 {[%emt 0:04:44]} Na5 {[%emt 0:02:18]} 33. Rxe6 {[%emt 0:01:05]} Nxc4 {[%emt 0:00:07]} 34. Rc1 {[%emt 0:00:05]} Nb6 {[%emt 0:01:51]} 35. Bf2 {[%emt 0:00:50]} Nd5 {[%emt 0:01:37]} 36. Rc4 {[%emt 0:00:32]} a5 {[%emt 0:01:02]} 37. Rd6 {[%emt 0:00:21]} Rfd8 {[%emt 0:00:26]} 38. Rxc5 {[%emt 0:00:21]} Nc3 {[%emt 0:00:21]} 39. Nxc3 {[%emt 0:00:24]} bxc3 {[%emt 0:00:05]} 40. Rxc3 {[%emt 0:00:41]} g5 {[%emt 0:00:15]} 41. Rxc8 {[%emt 0:02:31]} Rxc8 {[%emt 0:00:09]} 42. fxg5 {[%emt 0:00:51]} Bxe5 {[%emt 0:00:45]} 43. Rd5 {[%emt 0:00:18]} Bc3 {[%emt 0:00:16]} 44. Rc5 {[%emt 0:01:08]} Rxc5 {[%emt 0:01:15]} 45. Bxc5 {[%emt 0:00:06]} Bd2 {[%emt 0:01:08]} 46. h4 {[%emt 0:00:32]} Kf7 {[%emt 0:00:14]} 47. Kf3 {[%emt 0:00:22]} Ke6 {[%emt 0:00:30]} 48. Ke4 {[%emt 0:01:30]} Be1 {[%emt 0:00:23]} 49. h5 {[%emt 0:00:16]} Bd2 {[%emt 0:00:13]} 50. Be3 {[%emt 0:00:15]} Be1 {[%emt 0:00:14]} 51. a4 {[%emt 0:00:25]} Bb4 {[%emt 0:00:35]} 52. Bd4 {[%emt 0:03:10] Kd5+} 1-0

[Event "Mukachevo Rating January 2019"]
[Site "Mukachevo"]
[Date "2019.01.12"]
[Round "6"]
[White "Martynyuk, Elizaveta"]
[Black "Becskei, Zoltan"]
[Result "1-0"]
[ECO "B42"]
[WhiteElo "2120"]
[BlackElo "2308"]
[Annotator "NA"]
[PlyCount "99"]
[EventDate "2019.01.09"]
[EventType "tourn"]
[EventCountry "UKR"]
[SourceTitle "playchess.com"]
[Source "ChessBase"]
[SourceQuality "1"]
[TimeControl "5400+30"]

1. e4 {[%emt 0:13:02]} c5 {[%emt 0:00:28]} 2. Nf3 {[%emt 0:00:04]} e6 {[%emt 0:00:11]} 3. d4 {[%emt 0:00:06]} cxd4 {[%emt 0:00:17]} 4. Nxd4 {[%emt 0:00:02]} a6 {[%emt 0:00:20]} 5. Bd3 {[%emt 0:00:07]} Nf6 {[%emt 0:00:23]} 6. O-O {[%emt 0:00:10]} Qc7 {[%emt 0:00:18]} 7. c4 {[%emt 0:00:06]} d6 {[%emt 0:01:01]} 8. Nc3 {[%emt 0:00:12]} Nbd7 {[%emt 0:00:32]} 9. b3 {[%emt 0:00:22]} h6 {[%emt 0:00:35]} 10. Bb2 {[%emt 0:00:08]} g5 {[%emt 0:01:28]} 11. Nce2 {[%emt 0:03:38]} Ne5 {[%emt 0:02:39]} 12. f4 {[%emt 0:01:29]} Neg4 {[%emt 0:01:45]} 13. Nc2 {[%emt 0:04:15]} e5 {[%emt 0:00:35]} 14. fxe5 {[%emt 0:05:07]} dxe5 {[%emt 0:00:20]} 15. h3 {[%emt 0:00:44]} Bc5+ {[%emt 0:00:29]} 16. Kh1 {[%emt 0:00:49]} h5 {[%emt 0:00:43]} 17. Qd2 {[%emt 0:05:35]} Nf2+ {[%emt 0:02:22]} 18. Rxf2 {[%emt 0:00:28]} Bxf2 {[%emt 0:00:15]} 19. Qxg5 {[%emt 0:00:32]} Ng4 {[%emt 0:03:16]} 20. Qg7 {[%emt 0:00:32]} Rf8 {[%emt 0:00:19]} 21. hxg4 {[%emt 0:00:34]} hxg4 {[%emt 0:01:12]} 22. Rf1 {[%emt 0:02:49]} f5 {[%emt 0:01:33]} 23. Qg6+ {[%emt 0:01:22]} Qf7 {[%emt 0:00:12]} 24. Qxf7+ {[%emt 0:00:12]} Rxf7 {[%emt 0:00:09]} 25. Rxf2 {[%emt 0:00:07]} fxe4 {[%emt 0:00:07]} 26. Rxf7 {[%emt 0:00:14]} exd3 {[%emt 0:00:54]} 27. Rf1 {[%emt 0:00:40]} b5 {[%emt 0:22:45]} 28. Bxe5 {[%emt 0:00:25]} bxc4 {[%emt 0:01:43]} 29. bxc4 {[%emt 0:00:03]} Be6 {[%emt 0:05:09]} 30. Ned4 {[%emt 0:00:48]} Bxc4 {[%emt 0:01:05]} 31. Ne3 {[%emt 0:00:05]} Bf7 {[%emt 0:06:18]} 32. Rd1 {[%emt 0:00:24]} Bg6 {[%emt 0:00:24]} 33. Ndf5 {[%emt 0:00:59]} Rd8 {[%emt 0:00:30]} 34. Bd6 {[%emt 0:00:34]} Kf7 {[%emt 0:02:57]} 35. Rxd3 {[%emt 0:00:14]} Ke6 {[%emt 0:00:52]} 36. Ng7+ {[%emt 0:00:41]} Kf7 {[%emt 0:01:01]} 37. Rd4 {[%emt 0:00:11]} g3 {[%emt 0:03:31]} 38. Ngf5 {[%emt 0:00:33]} Ke6 {[%emt 0:06:53]} 39. Bxg3 {[%emt 0:00:17]} Ra8 {[%emt 0:05:06]} 40. Rd6+ {[%emt 0:00:48]} Kf7 {[%emt 0:00:22]} 41. Bh4 {[%emt 0:00:05]} Bxf5 {[%emt 0:04:44]} 42. Nxf5 {[%emt 0:00:03]} a5 {[%emt 0:00:24]} 43. g4 {[%emt 0:00:07]} a4 {[%emt 0:00:15]} 44. g5 {[%emt 0:00:06]} Ke8 {[%emt 0:05:10]} 45. g6 {[%emt 0:00:06]} Rc8 {[%emt 0:00:21]} 46. g7 {[%emt 0:00:18]} Rc1+ {[%emt 0:01:04]} 47. Kh2 {[%emt 0:00:07]} Rc2+ {[%emt 0:00:13]} 48. Kh3 {[%emt 0:00:04]} Rc3+ {[%emt 0:00:15]} 49. Kg4 {[%emt 0:00:04]} Kf7 {[%emt 0:01:26]} 50. Rf6+ {[%emt 0:00:08]} 1-0

[Event "Mukachevo Rating January 2019"]
[Site "Mukachevo"]
[Date "2019.01.12"]
[Round "6"]
[White "Tran, David"]
[Black "Petrovskiy, Vadim"]
[Result "1/2-1/2"]
[ECO "B25"]
[WhiteElo "2111"]
[BlackElo "2205"]
[Annotator "NA"]
[PlyCount "55"]
[EventDate "2019.01.09"]
[EventType "tourn"]
[EventCountry "UKR"]
[SourceTitle "playchess.com"]
[Source "ChessBase"]
[SourceQuality "1"]
[TimeControl "5400+30"]

1. e4 {[%emt 0:04:37]} c5 {[%emt 0:00:00]} 2. Nc3 {[%emt 0:00:24]} Nc6 {[%emt 0:00:00]} 3. g3 {[%emt 0:00:05]} g6 {[%emt 0:00:00]} 4. Bg2 {[%emt 0:00:03]} Bg7 {[%emt 0:00:00]} 5. d3 {[%emt 0:00:03]} d6 {[%emt 0:00:10]} 6. f4 {[%emt 0:00:09]} Nf6 {[%emt 0:00:18]} 7. h3 {[%emt 0:00:14]} O-O {[%emt 0:04:30]} 8. Nf3 {[%emt 0:00:19]} Rb8 {[%emt 0:01:34]} 9. O-O {[%emt 0:01:08]} b5 {[%emt 0:00:24]} 10. g4 {[%emt 0:00:33]} b4 {[%emt 0:02:12]} 11. Ne2 {[%emt 0:00:05]} Ba6 {[%emt 0:06:17]} 12. f5 {[%emt 0:07:27]} c4 {[%emt 0:02:56]} 13. Nf4 {[%emt 0:07:45]} cxd3 {[%emt 0:14:18]} 14. cxd3 {[%emt 0:00:16]} Qa5 {[%emt 0:04:09]} 15. Re1 {[%emt 0:08:15]} Rfc8 {[%emt 0:10:47]} 16. Be3 {[%emt 0:01:19]} Bb7 {[%emt 0:06:55]} 17. fxg6 {[%emt 0:02:01]} hxg6 {[%emt 0:00:08]} 18. Qb3 {[%emt 0:00:50]} e6 {[%emt 0:06:41]} 19. Rac1 {[%emt 0:11:49]} Nd8 {[%emt 0:13:19]} 20. Nd2 {[%emt 0:03:19]} d5 {[%emt 0:03:42]} 21. e5 {[%emt 0:01:16]} Nd7 {[%emt 0:00:50]} 22. d4 {[%emt 0:00:10]} Ba6 23. Bf1 {[%emt 0:01:15]} Bxf1 {[%emt 0:03:06]} 24. Rxf1 {[%emt 0:00:12]} Qb6 {[%emt 0:01:22]} 25. Qd3 {[%emt 0:02:06]} Nc6 {[%emt 0:01:28]} 26. b3 {[%emt 0:00:47]} Qb5 {[%emt 0:02:47]} 27. Qxb5 {[%emt 0:00:56]} Rxb5 {[%emt 0:00:02]} 28. Rc2 {[%emt 0:00:13]} 1/2-1/2

[Event "Mukachevo Rating January 2019"]
[Site "Mukachevo"]
[Date "2019.01.13"]
[Round "7"]
[White "Tiba, Vladyslav"]
[Black "Shkuran, Danylo"]
[Result "1/2-1/2"]
[ECO "B15"]
[WhiteElo "2405"]
[BlackElo "2359"]
[Annotator "NA"]
[PlyCount "36"]
[EventDate "2019.01.09"]
[EventType "tourn"]
[EventCountry "UKR"]
[SourceTitle "playchess.com"]
[Source "ChessBase"]
[SourceQuality "1"]
[TimeControl "5400+30"]

1. e4 {[%emt 0:02:00]} c6 {[%emt 0:00:41]} 2. d4 {[%emt 0:00:57]} d5 {[%emt 0:00:23]} 3. Nc3 {[%emt 0:01:19]} dxe4 {[%emt 0:01:53]} 4. Nxe4 {[%emt 0:00:11]} Nf6 {[%emt 0:00:10]} 5. Nxf6+ {[%emt 0:06:23]} exf6 {[%emt 0:09:02]} 6. c3 {[%emt 0:03:37]} Bd6 {[%emt 0:09:41]} 7. Bd3 {[%emt 0:00:08]} O-O {[%emt 0:00:14]} 8. Ne2 {[%emt 0:07:02]} Re8 {[%emt 0:00:11]} 9. Qc2 {[%emt 0:05:22]} h6 {[%emt 0:00:08]} 10. O-O {[%emt 0:00:04]} Qc7 {[%emt 0:00:02]} 11. h3 $11 {[%emt 0:05:19] LiveBook: 19 Games} Nd7 {[%emt 0:09:31]} 12. Bd2 {[%emt 0:00:12]} Nf8 {[%emt 0:00:04]} 13. Rae1 {[%emt 0:03:30]} Be6 {[%emt 0:00:42]} 14. Bf5 {[%emt 0:02:08]} Rad8 {[%emt 0:00:09]} 15. Bxe6 {[%emt 0:00:04]} Nxe6 {[%emt 0:01:29]} 16. Qf5 {[%emt 0:00:10]} Qb6 {[%emt 0:03:15]} 17. Qc2 {[%emt 0:00:11]} Qc7 {[%emt 0:00:08]} 18. Qf5 {[%emt 0:00:07]} Qb6 {[%emt 0:00:04]} 1/2-1/2